[Event "Gibraltar Amateurs B 2019"]
[Site "Caleta"]
[Date "2019.01.30"]
[Round "5"]
[White "Mircov, Nicola-Alexandar"]
[Black "Olaizola, Miguel"]
[Result "1-0"]
[ECO "B70"]
[WhiteElo "1797"]
[BlackElo "1831"]
[Annotator "NA RC"]
[PlyCount "72"]
[EventDate "2019.01.18"]
[EventType "swiss"]
[EventCountry "GGB"]
[SourceTitle "playchess.com"]
[Source "ChessBase"]
[SourceQuality "1"]
[TimeControl "6600+10"]

1. e4 {[%emt 0:14:47]} c5 {[%emt 0:00:25]} 2. Nf3 {[%emt 0:00:04]} Nc6 {[%emt 0:00:40]} 3. d4 {[%emt 0:00:05]} cxd4 {[%emt 0:00:35]} 4. Nxd4 {[%emt 0:00:02]} g6 {[%emt 0:00:25]} 5. Nc3 {[%emt 0:00:09]} Bg7 {[%emt 0:00:16]} 6. Nb3 {[%emt 0:00:03]} Nf6 {[%emt 0:00:55]} 7. Be2 {[%emt 0:00:43]} O-O {[%emt 0:01:04]} 8. f4 {[%emt 0:01:46]} d6 {[%emt 0:02:01]} 9. O-O {[%emt 0:00:06]} b5 {[%emt 0:07:30]} 10. Bf3 {[%emt 0:02:10]} Qb6+ {[%emt 0:08:49]} 11. Kh1 {[%emt 0:00:27]} Bb7 {[%emt 0:09:45]} 12. Qe2 {[%emt 0:02:29]} b4 {[%emt 0:44:22]} 13. Be3 $1 {[%emt 0:02:05]} Qd8 {[%emt 0:03:06]} 14. Nd5 {[%emt 0:00:57]} Nxd5 {[%emt 0:03:17]} 15. exd5 {[%emt 0:03:00]} Nb8 {[%emt 0:03:07]} 16. Bd4 {[%emt 0:01:06]} (16. Rfb1 $14) 16... Ba6 {[%emt 0:00:36]} 17. Qf2 {[%emt 0:00:20]} Bxd4 {[%emt 0:01:33]} 18. Nxd4 {[%emt 0:00:12]} Bxf1 {[%emt 0:00:31]} 19. Rxf1 {[%emt 0:00:07]} Qb6 {[%emt 0:01:21]} 20. Qd2 {[%emt 0:00:43]} a5 {[%emt 0:02:01]} 21. h4 {[%emt 0:00:49]} b3 {[%emt 0:12:37]} (21... Nd7 $17 22. Nc6 Rae8) 22. axb3 {[%emt 0:00:33]} a4 {[%emt 0:01:15]} 23. b4 {[%emt 0:02:38]} a3 {[%emt 0:02:15]} 24. bxa3 {[%emt 0:00:09]} Rxa3 {[%emt 0:00:07]} 25. h5 {[%emt 0:00:28]} Ra4 {[%emt 0:02:31]} 26. c3 {[%emt 0:00:30]} Qa6 $1 {[%emt 0:00:14]} 27. Be2 {[%emt 0:00:46]} Ra2 {[%emt 0:00:24]} 28. Qe3 {[%emt 0:00:08]} Qa7 {[%emt 0:00:05] [#]} 29. f5 $1 {[%emt 0:01:29]} Ra1 {[%emt 0:00:47]} 30. Bd1 {[%emt 0:03:54]} (30. Rxa1 $16 Qxa1+ 31. Kh2) 30... Nd7 {[%emt 0:00:50]} 31. Qxe7 {[%emt 0:01:23]} Ne5 {[%emt 0:00:10]} 32. Qxd6 {[%emt 0:00:25]} Nc4 $2 {[%emt 0:00:15]} (32... Qb8 $16 33. Qe7 Ng4 {[%mdl 64] Pin}) 33. Qf4 {[%emt 0:00:36]} Qb8 {[%emt 0:00:29] [#]} 34. Qh6 $1 {[%emt 0:03:08]} Qg3 {[%emt 0:00:19]} 35. f6 {[%emt 0:01:32]} ({Not} 35. hxg6 fxg6 36. d6 (36. Ne6 Rf7 $15) 36... Rxd1 $15) (35. fxg6 $142 Qh4+ 36. Kg1 Qxh5 37. gxh7+ Kh8 38. Qxf8+ {[%mdl 64] Double Attack} Kxh7 39. Bxh5 Rxf1+ 40. Kxf1) 35... gxh5 {[%emt 0:00:45]} (35... Qh4+ {[%emt 0:03:11]}) 36. Nf5 {[%emt 0:00:10]} Re8 {[%emt 0:00:22]} 1-0

[Event "Gibraltar Amateurs B 2019"]
[Site "Caleta"]
[Date "2019.01.30"]
[Round "5"]
[White "Cordero Infante, Ivan"]
[Black "Valladolid Martin, Fco. Jose"]
[Result "1-0"]
[ECO "C54"]
[WhiteElo "1417"]
[BlackElo "1878"]
[Annotator "NA RC"]
[PlyCount "106"]
[EventDate "2019.01.18"]
[EventType "swiss"]
[EventCountry "GGB"]
[SourceTitle "playchess.com"]
[Source "ChessBase"]
[SourceQuality "1"]
[TimeControl "6600+10"]

1. e4 {[%emt 0:01:34]} e5 {[%emt 0:07:02]} 2. Nf3 {[%emt 0:00:00]} Nc6 {[%emt 0:00:04]} 3. Bc4 {[%emt 0:00:00]} Bc5 {[%emt 0:00:18]} 4. c3 {[%emt 0:00:00]} Nf6 {[%emt 0:00:07]} 5. d3 {[%emt 0:00:00]} h6 {[%emt 0:01:00]} 6. O-O {[%emt 0:00:00]} O-O {[%emt 0:00:12]} 7. b4 {[%emt 0:00:00]} Bb6 {[%emt 0:00:28] C54: Giuoco Piano: 4 c3 Nf6, main lines with 5 d4 and 5 d3} 8. Nbd2 {[%emt 0:01:08]} d6 {[%emt 0:00:16]} 9. h3 {[%emt 0:00:28]} (9. Bb3 Ne7 10. Nc4 Ng6 11. Re1 Re8 12. h3 Be6 13. Bc2 c6 14. Nxb6 axb6 {½-½ (29) Kravtsiv,M (2672)-Cheparinov,I (2710) Riadh 2017}) 9... Ne7 {[%emt 0:01:38]} 10. Re1 {[%emt 0:00:24]} Ng6 {[%emt 0:00:48]} 11. Nf1 {[%emt 0:00:12]} Be6 {[%emt 0:00:40]} 12. Bb3 $146 {[%emt 0:00:27]} ({Predecessor:} 12. Ng3 Qd7 13. Bxe6 fxe6 14. Be3 Bxe3 15. fxe3 Rf7 16. h4 Qc6 {1-0 (48) Borrink,J (2087)-Pliete,C (1832) Germany 2015}) 12... Qd7 {[%emt 0:01:03]} 13. Be3 {[%emt 0:00:06]} Nf4 {[%emt 0:00:39]} (13... Bxe3 $11 14. Nxe3 a5) 14. Bxf4 {[%emt 0:00:43]} exf4 {[%emt 0:00:08]} 15. Qd2 {[%emt 0:03:20]} g5 {[%emt 0:08:01]} 16. N1h2 {[%emt 0:02:53]} Bxh3 {[%emt 0:01:59]} 17. gxh3 {[%emt 0:00:47]} Qxh3 {[%emt 0:00:06]} 18. e5 {[%emt 0:01:26]} (18. Kh1 $16) 18... dxe5 {[%emt 0:01:49]} 19. Nxe5 {[%emt 0:01:00]} g4 {[%emt 0:03:06]} 20. d4 {[%emt 0:07:34]} f3 {[%emt 0:02:29]} 21. Nexf3 {[%emt 0:01:06]} gxf3 {[%emt 0:00:08]} 22. Nxf3 {[%emt 0:00:26]} Qxf3 {[%emt 0:01:29]} 23. Qxh6 {[%emt 0:00:04]} Qg4+ {[%emt 0:01:36]} 24. Kf1 {[%emt 0:00:49]} Qg7 {[%emt 0:02:29]} 25. Qh3 {[%emt 0:00:37]} Rfe8 {[%emt 0:00:54]} 26. a4 {[%emt 0:00:12]} a5 {[%emt 0:00:33]} 27. b5 {[%emt 0:00:12]} c6 {[%emt 0:03:19]} 28. bxc6 {[%emt 0:00:18]} bxc6 {[%emt 0:00:08]} 29. Rxe8+ {[%emt 0:00:44]} Rxe8 {[%emt 0:00:11]} 30. Re1 {[%emt 0:00:06]} Rxe1+ {[%emt 0:00:48]} 31. Kxe1 {[%emt 0:00:02]} Qg1+ {[%emt 0:00:26]} 32. Ke2 {[%emt 0:00:05]} Qg4+ {[%emt 0:00:08]} 33. Qxg4+ {[%emt 0:00:36]} Nxg4 {[%emt 0:00:06]} 34. Kf3 {[%emt 0:00:01]} Nf6 {[%emt 0:01:15]} 35. Kf4 {[%emt 0:00:03]} Kf8 {[%emt 0:00:09]} 36. f3 {[%emt 0:00:40]} Ke7 {[%emt 0:00:11]} 37. Ke5 {[%emt 0:00:19]} Bc7+ {[%emt 0:00:20]} 38. Kf5 {[%emt 0:00:14]} Nd5 {[%emt 0:00:30]} 39. c4 {[%emt 0:00:15]} Nf4 {[%emt 0:00:30]} 40. Ke4 {[%emt 0:00:39]} Kf6 {[%emt 0:00:41]} 41. d5 {[%emt 0:00:20]} c5 {[%emt 0:00:54]} 42. Bd1 {[%emt 0:00:29]} Be5 {[%emt 0:00:25]} 43. Bc2 {[%emt 0:00:46]} Ne2 {[%emt 0:00:26]} 44. Ke3 {[%emt 0:00:30]} Nd4 {[%emt 0:00:35]} 45. Bd1 {[%emt 0:00:17]} Kg5 {[%emt 0:00:09]} 46. Ke4 {[%emt 0:01:01]} Bd6 {[%emt 0:00:30]} 47. Ke3 {[%emt 0:03:27]} Kf5 {[%emt 0:00:06]} 48. Be2 {[%emt 0:00:27]} Nxe2 {[%emt 0:01:11]} 49. Kxe2 {[%emt 0:00:10]} Kf4 {[%emt 0:00:05]} 50. Kf2 {[%emt 0:00:11]} f5 {[%emt 0:00:06]} 51. Ke2 {[%emt 0:00:25]} Kg3 {[%emt 0:00:23]} 52. Ke3 {[%emt 0:00:02]} Be5 {[%emt 0:00:37]} 53. Ke2 {[%emt 0:00:01]} f4 {[%emt 0:00:07]} 1-0